fUST/lending_fUST_20250309
["ID","MTS","AMOUNT","RATE_DAILY","PERIOD"]
[355686659,1741458549100,-10748.66538184,0.00026,30]
[355686660,1741458549124,-1402.98883283,0.000269,4]
[355686661,1741458549149,-1486.054762,0.00035,60]
[355686662,1741458549170,-3621.558343,0.00038356,2]
[355686663,1741458549190,-3621.558343,0.00039178,2]
[355686664,1741458549216,-24900.0,0.00039443,2]
[355686665,1741458549237,-425.6513612,0.00039473,5]
[355686666,1741458549258,-160.74450879,0.00039473,5]
[355686667,1741458549278,-504.45084493,0.00039473,5]
[355686668,1741458549298,-500.0,0.00039473,5]
[355686669,1741458549320,-180.689599,0.00039758,2]
[355686670,1741458549341,-206.76527239,0.00039924,2]
[355686671,1741458549362,-3621.558343,0.0004,2]
[355686672,1741458549384,-482.483462,0.00040042,2]
[355686673,1741458549405,-3621.558343,0.00040822,2]
[355686674,1741458549427,-157.0,0.00041,14]
[355686675,1741458549448,-3621.558343,0.00041644,2]
[355686676,1741458549470,-808.17707915,0.00042163,28]
[355686677,1741458549492,-3621.558343,0.00042466,2]
[355686678,1741458549512,-162.308036,0.00043112,2]
[355686679,1741458549534,-157.0,0.00043151,90]
[355686680,1741458549554,-1258.3233424,0.00043288,2]
[355686681,1741458552077,-2363.2350006,0.00043288,2]
[355686682,1741458552102,-500.0,0.00043835,2]
[355686683,1741458552125,-500.0,0.00043835,2]
[355686684,1741458552272,-500.0,0.00043835,2]
[355686685,1741458552296,-500.0,0.00043835,2]
[355686686,1741458552319,-500.0,0.00043835,2]
[355686687,1741458552341,-500.0,0.00043835,2]
[355686688,1741458552364,-500.0,0.00043835,2]
[355686689,1741458552390,-500.0,0.00043835,2]
[355686690,1741458552411,-500.0,0.00043835,2]
[355686691,1741458552433,-295.53674065,0.00043835,2]
[355686692,1741458552455,-500.0,0.00043835,2]
[355686693,1741458552476,-500.0,0.00043835,2]
[355686694,1741458552498,-500.0,0.00043835,2]
[355686695,1741458552518,-5000.0,0.00043836,10]
[355686696,1741458552540,-1834.17426398,0.0004411,2]
[355686697,1741458554121,-1787.38407902,0.0004411,2]
[355686704,1741458580391,179.44372445,0.00042933,28]
[355686710,1741458603078,249.07307627,0.00044586,10]
[355686766,1741458631912,-157.49182805,0.00044845,120]
[355686768,1741458631923,-206.76527239,0.00044924,2]
[355686770,1741458631932,-3621.558343,0.00044932,2]
[355686771,1741458631943,-1000.0,0.00044952,10]
[355686773,1741458631953,-158.0,0.00045308,90]
[355686775,1741458631963,-3621.558343,0.00045753,2]
[355686777,1741458631973,-1676.43805346,0.000458,7]
[355686779,1741458631983,-1200.0,0.00046,30]
[355686781,1741458631992,-433.19745374,0.00046023,2]
[355686783,1741458632005,-416.66666667,0.00046236,2]
[355686785,1741458632014,-231.56055134,0.00046265,2]
[355686787,1741458632024,-1384.05094249,0.000463,2]
[355686789,1741458632034,-1067.84412245,0.00046305,2]
[355686791,1741458632045,-160.0,0.00046309,2]
[355686793,1741458632055,-160.0,0.00046309,2]
[355686795,1741458632064,-343.96,0.00046355,30]
[355686797,1741458632073,-170.0,0.00046364,30]
[355686799,1741458632082,-999.0,0.00046364,120]
[355686801,1741458632091,-7529.42200792,0.00046365,4]
[355686803,1741458632103,-2021.51467903,0.00046365,4]
[355686806,1741458632115,-74383.27699285,0.00046365,4]
[355686808,1741458632125,-500.0,0.00046373,10]
[355686810,1741458632134,-500.0,0.00046373,10]
[355686811,1741458632143,-500.0,0.00046373,10]
[355686813,1741458632153,-158.7394532,0.00046373,10]
[355686816,1741458632163,-222000.0,0.00046375,2]
[355686817,1741458632172,-1001.26,0.000464,30]
[355686820,1741458632182,-1268.73,0.000464,30]
[355686821,1741458632192,-151.0,0.00046475,120]
[355686824,1741458632202,-151.0,0.00046475,120]
[355686825,1741458632212,-151.0,0.00046475,120]
[355686827,1741458632221,-151.0,0.00046475,120]
[355686829,1741458632231,-151.0,0.00046475,120]
[355686831,1741458632240,-151.0,0.00046475,120]
[355686833,1741458632250,-151.0,0.00046475,120]
[355686835,1741458632259,-151.0,0.00046475,120]
[355686837,1741458632268,-151.0,0.00046475,120]
[355686839,1741458632277,-151.0,0.00046475,120]
[355686841,1741458632287,-151.0,0.00046475,120]
[355686843,1741458632296,-151.0,0.00046475,120]
[355686845,1741458632305,-151.0,0.00046475,120]
[355686847,1741458632315,-151.0,0.00046475,120]
[355686849,1741458632325,-151.0,0.00046475,120]
[355686851,1741458632334,-151.0,0.00046475,120]
[355686853,1741458632343,-151.0,0.00046475,120]
[355686855,1741458632353,-151.0,0.00046475,120]
[355686857,1741458632362,-151.0,0.00046475,120]
[355686859,1741458632371,-151.0,0.00046475,120]
[355686861,1741458632380,-151.0,0.00046475,120]
[355686863,1741458632389,-151.0,0.00046475,120]
[355686865,1741458632398,-151.0,0.00046475,120]
[355686867,1741458632408,-151.0,0.00046475,120]
[355686869,1741458632417,-151.0,0.00046475,120]
[355686870,1741458632426,-151.0,0.00046475,120]
[355686872,1741458632436,-151.0,0.00046475,120]
[355686874,1741458632445,-151.0,0.00046475,120]
[355686877,1741458632455,-151.0,0.00046475,120]
[355686878,1741458632464,-151.0,0.00046475,120]
[355686880,1741458632474,-151.0,0.00046475,120]
[355686882,1741458632483,-151.0,0.00046475,120]
[355686884,1741458632492,-151.0,0.00046475,120]
[355686886,1741458632502,-151.0,0.00046475,120]
[355686888,1741458632511,-151.0,0.00046475,120]
[355686889,1741458632520,-151.0,0.00046475,120]
[355686891,1741458632529,-151.0,0.00046475,120]
[355686893,1741458632539,-151.0,0.00046475,120]
[355686894,1741458632548,-151.0,0.00046475,120]
[355686896,1741458632557,-151.0,0.00046475,120]
[355686898,1741458632566,-242.698574,0.00046475,120]
[355686900,1741458632576,-1570.8878235,0.000465,19]
[355686902,1741458632585,-20983.5534199,0.00046565,4]
[355686904,1741458632595,-500.0,0.00046575,120]
[355686906,1741458632604,-500.0,0.00046575,120]
[355686908,1741458632613,-498.0853251,0.00046575,120]
[355686910,1741458632622,-500.0,0.00046575,120]
[355686912,1741458632631,-917.94,0.00046575,120]
[355686914,1741458632641,-500.0,0.00046575,120]
[355686916,1741458632650,-3596.75,0.00046575,7]
[355686918,1741458632660,-1272.45,0.00046575,120]
[355686920,1741458632669,-500.0,0.00046575,120]
[355686922,1741458632679,-1040.62,0.00046575,7]
[355686924,1741458632689,-500.0,0.00046575,120]
[355686925,1741458632699,-500.0,0.00046575,2]
[355686926,1741458632709,-911.57,0.00046575,120]
[355686927,1741458632720,-3621.558343,0.00046575,2]
[355686928,1741458632730,-500.0,0.00046849,120]
[355686929,1741458632740,-500.0,0.00046849,120]
[355686930,1741458632750,-500.0,0.00046849,120]
[355686931,1741458632759,-917.94,0.00046849,120]
[355686932,1741458632768,-500.0,0.00046849,120]
[355686933,1741458632778,-3596.75,0.00046849,7]
[355686934,1741458632787,-1272.45,0.00046849,120]
[355686935,1741458632797,-500.0,0.00046849,120]
[355686936,1741458632807,-500.0,0.00046849,2]
[355686937,1741458632816,-911.57,0.00046849,120]
[355686938,1741458632826,-231.56055132,0.00046924,2]
[355686939,1741458632836,-1208.62,0.00047,30]
[355686940,1741458632846,-500.0,0.00047123,120]
[355686941,1741458632855,-500.0,0.00047123,120]
[355686942,1741458632865,-500.0,0.00047123,120]
[355686943,1741458632874,-917.94,0.00047123,120]
[355686944,1741458632883,-500.0,0.00047123,120]
[355686945,1741458632893,-3596.75,0.00047123,7]
[355686946,1741458632902,-1272.45,0.00047123,120]
[355686947,1741458632911,-481.66318548,0.00047123,120]
[355686948,1741458632921,-500.0,0.00047123,2]
[355686949,1741458632931,-911.57,0.00047123,120]
[355686950,1741458632940,-999.0,0.00047186,120]
[355686951,1741458632949,-562.6636281,0.00047373,10]
[355686952,1741458632959,-500.0,0.00047397,120]
[355686953,1741458632969,-500.0,0.00047397,120]
[355686954,1741458632979,-500.0,0.00047397,120]
[355686955,1741458632988,-917.94,0.00047397,120]
[355686956,1741458632998,-500.0,0.00047397,120]
[355686957,1741458633010,-3596.75,0.00047397,7]
[355686958,1741458633019,-1272.45,0.00047397,120]
[355686959,1741458633029,-500.0,0.00047397,2]
[355686960,1741458633039,-911.57,0.00047397,120]
[355686961,1741458633050,-3621.558343,0.00047397,2]
[355686962,1741458633060,-231.56055132,0.00047583,2]
[355686963,1741458633070,-500.0,0.00047671,120]
[355686964,1741458633081,-500.0,0.00047671,120]
[355686965,1741458633091,-500.0,0.00047671,120]
[355686966,1741458633101,-917.94,0.00047671,120]
[355686967,1741458633111,-500.0,0.00047671,120]
[355686968,1741458633122,-3596.75,0.00047671,7]
[355686969,1741458633132,-1272.45,0.00047671,120]
[355686970,1741458633142,-500.0,0.00047671,2]
[355686971,1741458633152,-911.57,0.00047671,120]
[355686972,1741458633162,-170.0,0.00047734,30]
[355686973,1741458633172,-20983.5534199,0.00047935,4]
[355686974,1741458633182,-500.0,0.00047945,120]
[355686975,1741458633191,-500.0,0.00047945,120]
[355686976,1741458633201,-500.0,0.00047945,120]
[355686977,1741458633211,-917.94,0.00047945,120]
[355686978,1741458633221,-500.0,0.00047945,120]
[355686979,1741458633230,-3596.75,0.00047945,7]
[355686980,1741458633240,-1272.45,0.00047945,120]
[355686981,1741458633250,-500.0,0.00047945,2]
[355686982,1741458633260,-911.57,0.00047945,120]
[355686983,1741458633269,-170.0,0.00048,90]
[355686984,1741458633279,-999.0,0.00048008,120]
[355686985,1741458633288,-500.0,0.00048219,120]
[355686986,1741458633298,-500.0,0.00048219,120]
[355686987,1741458633307,-500.0,0.00048219,120]
[355686988,1741458633317,-917.94,0.00048219,120]
[355686989,1741458633326,-500.0,0.00048219,120]
[355686990,1741458633335,-3596.75,0.00048219,7]
[355686991,1741458633345,-1272.45,0.00048219,120]
[355686992,1741458633355,-500.0,0.00048219,2]
[355686993,1741458633364,-911.57,0.00048219,120]
[355686994,1741458633374,-3621.558343,0.00048219,2]
[355686995,1741458633383,-231.56055132,0.00048241,2]
[355686996,1741458633392,-153.79,0.000483,45]
[355686997,1741458633401,-153.79,0.000483,45]
[355686998,1741458633410,-4007.87309821,0.000483,120]
[355686999,1741458633419,-2032.76829364,0.00048379,30]
[355687000,1741458633428,-502.67947844,0.00048473,10]
[355687001,1741458633438,-165.56927164,0.00048473,10]
[355687002,1741458633447,-645.38246467,0.00048473,10]
[355687003,1741458633457,-500.0,0.00048473,10]
[355687004,1741458633467,-500.0,0.00048473,10]
[355687005,1741458633476,-500.0,0.00048473,2]
[355687006,1741458633486,-500.0,0.00048473,10]
[355687007,1741458633496,-500.0,0.00048473,10]
[355687008,1741458633505,-500.0,0.00048473,10]
[355687010,1741458633515,-500.0,0.00048473,10]
[355687012,1741458633524,-500.0,0.00048493,120]
[355687014,1741458633533,-500.0,0.00048493,120]
[355687016,1741458633543,-500.0,0.00048493,120]
[355687018,1741458633552,-917.94,0.00048493,120]
[355687020,1741458633561,-500.0,0.00048493,120]
[355687022,1741458633571,-3596.75,0.00048493,7]
[355687024,1741458633581,-1272.45,0.00048493,120]
[355687026,1741458633591,-500.0,0.00048493,2]
[355687028,1741458633600,-911.57,0.00048493,120]
[355687030,1741458633610,-58237.7093505,0.000485,43]
[355687032,1741458633623,-6503.25119761,0.000485,43]
[355687034,1741458633635,-4478.1123249,0.000485,43]
[355687421,1741458637697,-500.0,0.00046374,31]
[355687423,1741458637708,-410.80417087,0.00046374,31]
[355687425,1741458637724,-271.67,0.0004849,10]
[355687427,1741458637733,-1942.52582913,0.000485,43]
[355687444,1741458637879,-221.94926599,0.000485,43]
[355687446,1741458637890,-37210.5782375,0.000485,43]
[355687448,1741458637900,-38714.74802587,0.000485,43]
[355687450,1741458637909,-1886005.38476292,0.000485,120]
[355687452,1741458637918,-2500.0,0.000485,120]
[355687454,1741458637928,-436.922489,0.00048597,4]
[355687456,1741458637938,-1268.73,0.000486,30]
[355687458,1741458637947,-1001.26,0.000486,30]
[355687460,1741458637957,-352.0,0.00048611,30]
[355687462,1741458637967,-352.0,0.00048611,30]
[355687464,1741458637976,-316.0,0.00048611,30]
[355687466,1741458637986,-352.0,0.00048611,30]
[355687468,1741458637995,-316.0,0.00048611,30]
[355687470,1741458638006,-352.0,0.00048611,30]
[355687472,1741458638017,-352.0,0.00048611,30]
[355687474,1741458638026,-316.0,0.00048611,30]
[355687476,1741458638036,-352.0,0.00048611,30]
[355687478,1741458638045,-321.46638058,0.00048611,30]
[355687480,1741458638055,-352.0,0.00048611,30]
[355687482,1741458638064,-352.0,0.00048611,30]
[355687484,1741458638073,-352.0,0.00048611,30]
[355687486,1741458638083,-352.0,0.00048611,30]
[355687488,1741458638094,-352.0,0.00048611,30]
[355687490,1741458638104,-352.0,0.00048611,30]
[355687492,1741458638113,-352.0,0.00048611,30]
[355687493,1741458638122,-352.0,0.00048611,30]
[355687494,1741458638131,-352.0,0.00048611,30]
[355687495,1741458638140,-352.0,0.00048611,30]
[355687496,1741458638150,-352.0,0.00048611,30]
[355687497,1741458638158,-352.0,0.00048611,30]
[355687498,1741458638167,-352.0,0.00048611,30]
[355687499,1741458638176,-352.0,0.00048611,30]
[355687500,1741458638186,-352.0,0.00048611,30]
[355687501,1741458638195,-352.0,0.00048611,30]
[355687502,1741458638204,-491.03717399,0.00048611,30]
[355687503,1741458638213,-500.0,0.00048767,120]
[355687504,1741458638222,-500.0,0.00048767,120]
[355687505,1741458638230,-500.0,0.00048767,120]
[355687506,1741458638240,-917.94,0.00048767,120]
[355687507,1741458638250,-500.0,0.00048767,120]
[355687508,1741458638259,-3596.75,0.00048767,7]
[355687509,1741458638268,-1272.45,0.00048767,120]
[355687510,1741458638277,-500.0,0.00048767,2]
[355687511,1741458638286,-911.57,0.00048767,120]
[355687512,1741458638295,-151.0,0.000488,25]
[355687513,1741458638305,-20983.5534199,0.0004882,4]
[355687514,1741458638314,-999.0,0.0004883,120]
[355687517,1741458638328,-231.56055132,0.000489,2]
[355687519,1741458638345,-20983.5534199,0.00048931,4]
[355687521,1741458638355,-55555.0,0.00048941,120]
[355687523,1741458638364,-150.0,0.00048973,10]
[355687524,1741458638374,-41967.1068399,0.0004899,4]
[355687526,1741458638383,-20983.5534199,0.0004899,4]
[355687528,1741458638392,-2613.269436,0.00048993,60]
[355687530,1741458638402,-4934.55794564,0.00049,120]
[355687531,1741458638411,-57070.7589,0.00049,120]
[355687532,1741458638421,-66302.68933086,0.00049,120]
[355687554,1741458639912,-500.0,0.00046373,10]
[355687555,1741458639922,-7381.78483276,0.00049,120]
[355687556,1741458639934,-570.30106918,0.00049,120]
[355687557,1741458639945,-595.65711148,0.00049,120]
[355687558,1741458639957,-738.6676937,0.00049,120]
[355687585,1741458642727,-13204.36991821,0.00049,120]
[355687586,1741458642739,-1624.19018579,0.00049,120]
[355687587,1741458642765,-1820.87775268,0.00049,120]
[355687588,1741458642777,-8607.85317864,0.00049,120]
[355687611,1741458645891,-500.0,0.00046575,120]
[355687612,1741458645900,-500.0,0.00046575,120]
[355687613,1741458645910,-500.0,0.00046849,120]
[355687614,1741458645919,-500.0,0.00046849,120]
[355687615,1741458645929,-500.0,0.00047123,120]
[355687616,1741458645938,-500.0,0.00047123,120]
[355687617,1741458645948,-500.0,0.00047397,120]
[355687618,1741458645958,-235.97312456,0.00047397,120]
[355687619,1741458645971,-264.02687544,0.00047397,120]
[355687620,1741458645981,-500.0,0.00047671,120]
[355687621,1741458645991,-500.0,0.00047671,120]
[355687622,1741458646000,-500.0,0.00047945,120]
[355687623,1741458646013,-500.0,0.00047945,120]
[355687624,1741458646023,-500.0,0.00048219,120]
[355687625,1741458646032,-500.0,0.00048219,120]
[355687626,1741458646042,-500.0,0.00048493,120]
[355687627,1741458646051,-500.0,0.00048493,120]
[355687628,1741458646061,-500.0,0.00048767,120]
[355687629,1741458646071,-500.0,0.00048767,120]
[355687630,1741458646081,-68600.2332831,0.00049,120]
[355687631,1741458646311,-2115.2855917,0.00049,120]
[355687632,1741458675336,160.0,0.0002,3]
[355687633,1741458675984,214.9742646,0.00041065,2]
[355687634,1741458727773,250.0,0.00036713,2]
[355687635,1741458742285,594.0,0.00042,120]
[355687636,1741458744593,594.0,0.00044,120]
[355687637,1741458987190,1990.0,0.0002501,2]
[355687641,1741459533122,-180.6895992,0.00034066,2]
[355687642,1741459533151,-162.45386,0.0003589,2]
[355687643,1741459533180,-207.3124955,0.00036187,2]
[355687644,1741459533211,-322.08956062,0.00036316,2]
[355687645,1741459612084,-206.90415627,0.00036316,2]
[355687646,1741459626080,-253.74605911,0.00036316,2]
[355687647,1741459626101,-203.4043045,0.00036325,2]
[355687648,1741459626122,-639.64034793,0.00036701,2]
[355687649,1741459636126,-823.29690807,0.00036701,2]
[355687650,1741459636149,-4074.1381845,0.00036785,2]
[355687651,1741459636172,-1501.80288639,0.000369,7]
[355687652,1741459636196,-168.0,0.00039838,2]
[355687653,1741459636218,-11252.1955529,0.00039838,2]
[355687654,1741459636240,-1126.29258839,0.00040562,28]
[355687655,1741459636262,-330.83388137,0.00040562,2]
[355687656,1741459636285,-335.69407848,0.00040573,2]
[355687657,1741459636306,-342.0303647,0.00040575,2]
[355687658,1741459636329,-731.59,0.00040652,3]
[355687659,1741459636355,-637.56291961,0.00040661,31]
[355687660,1741459636379,-1982.28004331,0.00040661,2]
[355687661,1741459636403,-1982.28004331,0.00040661,2]
[355687662,1741459636430,-1982.28004331,0.00040661,2]
[355687663,1741459636455,-1982.28004331,0.00040661,2]
[355687664,1741459636480,-1982.28004331,0.00040661,2]
[355687665,1741459636504,-1982.28004331,0.00040661,2]
[355687666,1741459636529,-1982.28004331,0.00040661,2]
[355687667,1741459636553,-133.95157811,0.00040661,2]
[355687668,1741459637084,-494.96374674,0.00040661,2]
[355687669,1741459640086,-1198.95377235,0.00040661,2]
[355687670,1741459646141,-154.41094611,0.00040661,2]
[355687671,1741459646167,-1201.50459299,0.00040661,2]
[355687672,1741459647089,-780.77545032,0.00040661,2]
[355687673,1741459647115,-1982.28004331,0.00040661,2]
[355687674,1741459647143,-1982.28004331,0.00040661,2]
[355687675,1741459647168,-1982.28004331,0.00040661,2]
[355687676,1741459647193,-1603.90270949,0.00040661,2]
[355687677,1741459647225,-378.37733382,0.00040661,2]
[355687678,1741459647249,-208.63489415,0.00040661,2]
[355687679,1741459746069,-1951.65318,0.00036316,2]
[355687680,1741459746092,-168.18635838,0.00040561,120]
[355687681,1741459746115,-33379.0453821,0.00040651,3]
[355687682,1741459746135,-463.86704492,0.00040651,3]
[355687683,1741459746157,-231.93352246,0.00040653,3]
[355687684,1741459746179,-446.29404373,0.0004066,31]
[355687685,1741459746206,-731.35726708,0.0004066,2]
[355687686,1741459746229,-731.35726708,0.0004066,2]
[355687687,1741459746252,-731.35726708,0.0004066,2]
[355687688,1741459746274,-731.35726708,0.0004066,2]
[355687689,1741459746297,-731.35726708,0.0004066,2]
[355687690,1741459746319,-731.35726708,0.0004066,2]
[355687691,1741459746342,-731.35726708,0.0004066,2]
[355687692,1741459746364,-731.35726708,0.0004066,2]
[355687693,1741459746389,-731.35726708,0.0004066,2]
[355687694,1741459746411,-731.35726708,0.0004066,2]
[355687695,1741459746435,-731.35726708,0.0004066,2]
[355687696,1741459746459,-731.35726708,0.0004066,2]
[355687697,1741459746482,-731.35726708,0.0004066,2]
[355687698,1741459746506,-731.35726708,0.0004066,2]
[355687699,1741459746529,-731.35726708,0.0004066,2]
[355687700,1741459746553,-731.35726708,0.0004066,2]
[355687701,1741459746576,-731.35726708,0.0004066,2]
[355687702,1741459746600,-731.35726708,0.0004066,2]
[355687703,1741459746624,-731.35726708,0.0004066,2]
[355687704,1741459746647,-731.35726708,0.0004066,2]
[355687705,1741459746669,-731.35726708,0.0004066,2]
[355687706,1741459746693,-731.35726708,0.0004066,2]
[355687707,1741459746717,-731.35726708,0.0004066,2]
[355687708,1741459746740,-731.35726708,0.0004066,2]
[355687709,1741459746763,-731.35726708,0.0004066,2]
[355687710,1741459746786,-731.35726708,0.0004066,2]
[355687711,1741459746809,-731.35726708,0.0004066,2]
[355687712,1741459746832,-731.35726708,0.0004066,2]
[355687713,1741459746855,-731.35726708,0.0004066,2]
[355687714,1741459746877,-731.35726708,0.0004066,2]
[355687715,1741459746900,-731.35726708,0.0004066,2]
[355687716,1741459746922,-731.35726708,0.0004066,2]
[355687717,1741459746945,-731.35726708,0.0004066,2]
[355687718,1741459746969,-731.35726708,0.0004066,2]
[355687719,1741459746993,-731.35726708,0.0004066,2]
[355687720,1741459747017,-731.35726708,0.0004066,2]
[355687721,1741459747041,-731.35726708,0.0004066,2]
[355687722,1741459747065,-731.35726708,0.0004066,2]
[355687723,1741459747089,-731.35726708,0.0004066,2]
[355687724,1741459747114,-731.35726708,0.0004066,2]
[355687725,1741459747138,-731.35726708,0.0004066,2]
[355687726,1741459747161,-731.35726708,0.0004066,2]
[355687727,1741459747185,-731.35726708,0.0004066,2]
[355687728,1741459747211,-731.35726708,0.0004066,2]
[355687729,1741459747236,-731.35726708,0.0004066,2]
[355687730,1741459747260,-731.35726708,0.0004066,2]
[355687731,1741459747285,-731.35726708,0.0004066,2]
[355687732,1741459747310,-731.35726708,0.0004066,2]
[355687733,1741459747333,-731.35726708,0.0004066,2]
[355687734,1741459747362,-731.35726708,0.0004066,2]
[355687735,1741459747388,-731.35726708,0.0004066,2]
[355687736,1741459747411,-731.35726708,0.0004066,2]
[355687737,1741459747434,-731.35726708,0.0004066,2]
[355687738,1741459747459,-731.35726708,0.0004066,2]
[355687739,1741459747483,-731.35726708,0.0004066,2]
[355687740,1741459747505,-731.35726708,0.0004066,2]
[355687741,1741459747528,-731.35726708,0.0004066,2]
[355687742,1741459747552,-731.35726708,0.0004066,2]
[355687743,1741459747575,-731.35726708,0.0004066,2]
[355687744,1741459747598,-731.35726708,0.0004066,2]
[355687745,1741459747620,-731.35726708,0.0004066,2]
[355687746,1741459747644,-731.35726708,0.0004066,2]
[355687747,1741459747667,-731.35726708,0.0004066,2]
[355687748,1741459747690,-4010.77876372,0.0004066,2]
[355687749,1741459747712,-1396.24638412,0.0004066,2]
[355687750,1741459752068,-2614.5323796,0.0004066,2]
[355687751,1741459752091,-4010.77876372,0.0004066,2]
[355687752,1741459752211,-4010.77876372,0.0004066,2]
[355687753,1741459752240,-4010.77876372,0.0004066,2]
[355687754,1741459752264,-4010.77876372,0.0004066,2]
[355687755,1741459752291,-4010.77876372,0.0004066,2]
[355687756,1741459752313,-4010.77876372,0.0004066,2]
[355687757,1741459752347,-4010.77876372,0.0004066,2]
[355687758,1741459752373,-1812.76602414,0.0004066,2]
[355687759,1741459754098,-203.2,0.0004065,3]
[355687760,1741459754127,-2198.01273958,0.0004066,2]
[355687761,1741459754157,-4010.77876372,0.0004066,2]
[355687762,1741459754186,-4010.77876372,0.0004066,2]
[355687763,1741459754215,-4010.77876372,0.0004066,2]
[355687764,1741459754244,-4010.77876372,0.0004066,2]
[355687765,1741459754273,-4010.77876372,0.0004066,2]
[355687766,1741459754301,-4010.77876372,0.0004066,2]
[355687767,1741459754330,-4010.77876372,0.0004066,2]
[355687768,1741459754357,-4010.77876372,0.0004066,2]
[355687769,1741459754388,-4010.77876372,0.0004066,2]
[355687770,1741459754414,-4010.77876372,0.0004066,2]
[355687771,1741459754442,-4010.77876372,0.0004066,2]
[355687772,1741459754469,-2673.85250913,0.0004066,2]
[355687773,1741459754495,-2673.85250913,0.0004066,2]
[355687774,1741459754520,-2673.85250913,0.0004066,2]
[355687775,1741459754545,-2673.85250913,0.0004066,2]
[355687776,1741459754572,-2673.85250913,0.0004066,2]
[355687777,1741459754595,-2673.85250913,0.0004066,2]
[355687778,1741459754621,-2673.85250913,0.0004066,2]
[355687779,1741459754644,-2673.85250913,0.0004066,2]
[355687780,1741459754668,-2673.85250913,0.0004066,2]
[355687781,1741459754689,-10466.03657136,0.00040663,3]
[355687782,1741459754711,-16689.522691,0.00040666,3]
[355687783,1741459754733,-231.93352246,0.00040666,3]
[355687784,1741459754758,-500.0,0.00040673,5]
[355687785,1741459754782,-500.0,0.00040673,5]
[355687786,1741459754807,-11691.90932735,0.00040676,2]
[355687787,1741459755096,-12468.53756938,0.00040676,2]
[355687788,1741459757084,-739.55310327,0.00040676,2]
[355687789,1741459757107,-4157.4981111,0.00040676,64]
[355687790,1741459757129,-1173.57,0.000407,30]
[355687791,1741459757153,-926.16,0.000407,30]
[355687792,1741459757176,-1451.74279009,0.000409,8]
[355687793,1741459757200,-157.0,0.00041,14]
[355687794,1741459757223,-268.16270648,0.00041096,2]
[355687795,1741459757246,-1046.656585,0.000419,2]
[355687796,1741459757268,-406.4,0.0004202,3]
[355687797,1741459757290,-162.45386,0.00042209,2]
[355687798,1741459757311,-335.69407847,0.00042254,2]
[355687799,1741459757333,-81.05818831,0.00042933,28]
[355687800,1741459757360,-99.47943217,0.00042933,28]
[355687801,1741459757385,-200.0,0.000432,120]
[355687802,1741459757407,-999.0,0.00043835,120]
[355687803,1741459757430,-335.69407847,0.00043935,2]
[355687804,1741459757453,-999.0,0.00044657,120]
[355687805,1741459787958,852.5464507,0.00042438,2]
[355687836,1741459831970,-975.42,0.00045479,120]
[355687844,1741459832078,-23.58,0.00045479,120]
[355687846,1741459832088,-1860.9449853,0.000459,2]
[355687848,1741459832100,-149.30450614,0.000459,2]
[355687850,1741459832109,-594.0,0.00046,120]
[355687852,1741459832119,-747.17723878,0.00046152,10]
[355687854,1741459832128,-1112.00057768,0.00046165,28]
[355687855,1741459832138,-167.84703925,0.00046201,2]
[355687857,1741459832147,-160.0,0.00046205,2]
[355687859,1741459832157,-15555.67399697,0.00046206,2]
[355687861,1741459832166,-151.0,0.00046247,2]
[355687862,1741459832176,-911.68113205,0.00046247,2]
[355687864,1741459832185,-609.63,0.00046255,30]
[355687867,1741459832195,-157.21,0.00046255,10]
[355687868,1741459832204,-200.19,0.00046255,10]
[355687870,1741459832214,-463.86704492,0.00046255,4]
[355687872,1741459832223,-198.17745636,0.00046264,2]
[355687875,1741459832233,-83447.6134552,0.00046265,4]